Cogmind - Beta 12 X1 @@@ ROGUE MODE // 2022.07.06 @ 18:33:51 Player: Terminus Result: Self-destructed Performance ------------- Evolutions (6) 3000 Regions Visited (30) 6000 Robots Destroyed (377) 1885 Value Destroyed (16874) 16874 Prototype IDs (30) 600 Alien Tech Used (0) 0 Bonus (8521) 8521 TOTAL SCORE: 36880 Bonus ------- High Alert Combat Kills 2545 Follower Combat Kills 3966 Entered Garrisons 1200 Used RIF Installer 2500 Met Data Miner 300 Built Enhanced Grunts 300 Met R17 at Cetus 500 Friendly Fire -2790 Cogmind --------- Core Integrity 948/1150 Matter 19/300 Energy 225/225 System Corruption 11% Temperature Cool (65) Movement Hovering (111) Ox1 Location -4/Garrison Parts ------- > --- POWER (2) -------- Compact Particle Reactor Light Quantum Reactor > --- PROPULSION (6) --- Improved Antigrav System Antigrav Array > --- UTILITY (8) ------ Advanced Cooling System Advanced Gravity Neutralizer Advanced Signal Interpreter Improved Weapon Cycler Powered Armor Advanced Hacking Suite > --- WEAPON (3) ------- Heavy Linear Accelerator > --- INVENTORY (5) ---- Advanced Cooling System Compact Linear Accelerator Peak State ------------ > --- POWER ------------ Compact Particle Reactor Light Quantum Reactor > --- PROPULSION ------- Improved Antigrav System Improved Antigrav System Improved Antigrav System Improved Antigrav System Antigrav Array > --- UTILITY ---------- Advanced Cooling System Small Storage Unit Advanced Signal Interpreter Improved Weapon Cycler Improved Reaction Control System Advanced Phase Shifter Powered Armor Advanced Hacking Suite > --- WEAPON ----------- Railgun Compact Linear Accelerator Improved Remote Datajack > --- INVENTORY -------- Advanced Cooling System Advanced Gravity Neutralizer Powered Armor Heavy Linear Accelerator [Rating: 130] Favorites ----------- Power F-cell Engine Engine F-cell Engine Power Core Light Fission Core Reactor Compact Particle Reactor Propulsion Medium Treads Treads Medium Treads Hover Unit Cooled Airjet Utility Advanced Targeting Computer Device Improved Heat Sink Storage Small Storage Unit Processor Advanced Targeting Computer Hackware Advanced Hacking Suite Protection Hardened Medium Armor Plating Weapon Minigun Energy Gun Gatling Laser Energy Cannon Particle Cannon Ballistic Gun Minigun Ballistic Cannon Heavy Mass Driver Launcher Improved Grenade Launcher Special Weapon Improved Remote Datajack Impact Weapon Powered Hammer Slashing Weapon Phasing Sabre Piercing Weapon Spear Build | -11 -10 -10 -9 -9 -8 -8 -8 -7 -7 -7 -7 -7 -7 -7 -7 -6 -6 -6 -6 -5 -5 -5 -5 -5 -5 -5 -4 -4 -4 -4 ------- Run | Scr Mat Min Mat Min Mat Sto Gar Fac Was Fac Gar Fac Gar Fac Gar Fac Low Low Dat Pro Fac Ext Cet Arc Hub Gar Fac Was Fac Gar Slots Evolved 12 | . . . 2 . 2 . . 2 . . . . . . . 2 . . . . 2 . . . . . 2 . . . Power 1 | . . . . . . . . . . . . . . . . 1 . . . . . . . . . . . . . . Propulsion 4 | . . . . . 1 . . . . . . . . . . 1 . . . . 1 . . . . . 1 . . . Utility 6 | . . . 2 . . . . 2 . . . . . . . . . . . . 1 . . . . . 1 . . . Weapon 1 | . . . . . 1 . . . . . . . . . . . . . . . . . . . . . . . . . Parts Attached 309 | 6 8 . 19 7 20 14 16 23 5 23 7 1 10 4 14 9 11 . . 4 9 20 11 1 . 35 14 2 6 10 Power 27 | 1 . . 3 1 1 2 1 . 1 2 . . 3 1 . 2 . . . . . 1 1 . . 5 1 . . 1 Engine 17 | 1 . . 3 1 1 2 1 . . 1 . . 3 1 . 1 . . . . . 1 . . . 1 . . . . Core 4 | . . . . . . . . . . 1 . . . . . 1 . . . . . . . . . 2 . . . . Reactor 6 | . . . . . . . . . 1 . . . . . . . . . . . . . 1 . . 2 1 . . 1 Propulsion 58 | 2 2 . 6 1 6 3 2 3 . 7 2 . 1 2 2 1 . . . . . 5 1 . . . 6 . 5 1 Treads 25 | 2 2 . 6 1 6 3 2 3 . . . . . . . . . . . . . . . . . . . . . . Leg . | . . . . . . . . . . . . . . . . . . . . . . . . . . . . . . . Wheel . | . . . . . . . . . . . . . . . . . . . . . . . . . . . . . . . Hover 33 | . . . . . . . . . . 7 2 . 1 2 2 1 . . . . . 5 1 . . . 6 . 5 1 Flight . | . . . . . . . . . . . . . . . . . . . . . . . . . . . . . . . Utility 113 | 1 4 . 8 1 8 2 5 14 2 6 3 1 3 . 2 3 1 . . 3 3 8 7 1 . 14 6 . 1 6 Device 62 | . 2 . 5 1 2 1 2 8 1 2 3 1 3 . 2 2 . . . 2 2 5 4 . . 5 3 . 1 5 Storage 9 | 1 2 . 1 . 2 . . . . 1 . . . . . . . . . . . 2 . . . . . . . . Processor 6 | . . . . . 2 . . 1 . . . . . . . . 1 . . . 1 . . . . . 1 . . . Hackware 14 | . . . . . . . . 1 1 . . . . . . . . . . 1 . 1 1 1 . 8 . . . . Protection 22 | . . . 2 . 2 1 3 4 . 3 . . . . . 1 . . . . . . 2 . . 1 2 . . 1 Artifact . | . . . . . . . . . . . . . . . . . . . . . . . . . . . . . . . Weapon 111 | 2 2 . 2 4 5 7 8 6 2 8 2 . 3 1 10 3 10 . . 1 6 6 2 . . 16 1 2 . 2 Energy Gun 9 | . . . . . . . . . . . 1 . . . 4 . . . . . 2 2 . . . . . . . . Energy Cannon 6 | . 2 . 2 2 . . . . . . . . . . . . . . . . . . . . . . . . . . Ballistic Gun 41 | 2 . . . . 5 4 4 3 1 3 . . 3 . . . 1 . . 1 2 2 1 . . 7 1 1 . . Ballistic Cannon 13 | . . . . . . . 2 1 . 1 . . . . 3 . 1 . . . . . . . . 2 . 1 . 2 Launcher 14 | . . . . 2 . 1 1 1 . 1 . . . . 1 1 4 . . . . . . . . 2 . . . . Special Weapon 15 | . . . . . . . . 1 1 3 . . . 1 1 1 . . . . 1 2 . . . 4 . . . . Impact Weapon 6 | . . . . . . . . . . . . . . . . 1 4 . . . 1 . . . . . . . . . Slashing Weapon 5 | . . . . . . 2 1 . . . . . . . . . . . . . . . 1 . . 1 . . . . Piercing Weapon 2 | . . . . . . . . . . . 1 . . . 1 . . . . . . . . . . . . . . . Special Melee Weapon . | . . . . . . . . . . . . . . . . . . . . . . . . . . . . . . . Unidentified Prototypes 13 | . . . . . . 2 . 1 . 2 . . 1 1 . . . . . . . 1 4 . . . . 1 . . Parts Lost 52 | . . . 2 . 2 2 4 5 . 4 . . 2 . 7 . 1 . . . 1 2 . . . 8 . . . 12 Power 3 | . . . . . . 1 . . . . . . 1 . . . . . . . . . . . . 1 . . . . Propulsion 19 | . . . . . 1 . 2 3 . 2 . . 1 . 2 . 1 . . . . 2 . . . 2 . . . 3 Utility 17 | . . . 2 . 1 . 1 . . 1 . . . . 2 . . . . . 1 . . . . 3 . . . 6 Weapon 13 | . . . . . . 1 1 2 . 1 . . . . 3 . . . . . . . . . . 2 . . . 3 Highest Loss Streak 9 | . . . 1 . 1 1 2 4 . 3 . . 2 . 7 . 1 . . . 1 1 . . . 2 . . . 9 To Critical Strikes 2 | . . . . . . . 1 1 . . . . . . . . . . . . . . . . . . . . . . Average Slot Usage (%) 94 | . 96 100 99 100 99 99 96 91 92 87 85 92 96 100 93 90 94 93 93 93 85 84 90 94 94 82 84 94 94 91 Engine 7 | . 14 14 11 11 9 9 9 7 1 1 . . 5 7 7 8 6 6 6 6 5 5 3 . . . . . . . Core 1 | . . . . . . . . . . 5 7 7 1 . . 4 6 6 6 6 5 5 5 5 5 . . . . . Reactor 1 | . . . . . . . . . 5 . . . . . . . . . . . . . 1 5 5 8 10 10 10 10 Treads 15 | . 27 28 21 22 26 26 27 22 23 . . . . . . . . . . . . . . . . . . . . . Hover 7 | . . . . . . . . . . 22 23 23 23 23 22 22 21 20 20 20 17 14 19 23 23 12 16 26 26 25 Device 16 | . 11 14 24 22 9 9 9 14 15 19 13 23 22 23 24 25 24 20 20 20 23 22 18 11 11 10 12 15 15 17 Storage 8 | . 14 14 11 11 9 9 9 7 7 7 7 7 7 7 7 6 6 6 6 6 5 4 5 5 5 5 5 5 5 4 Processor 6 | . . . . . 9 9 9 14 15 15 15 15 15 15 12 6 7 13 13 7 7 5 5 5 5 5 7 10 10 7 Hackware 2 | . . . . . . . . 4 7 . . . . . . . . . . 5 . 4 7 11 11 14 9 5 5 5 Protection 4 | . . . 8 11 8 9 9 2 . 1 5 . . . . . . . . . . . 1 5 5 2 5 5 5 5 Energy Gun 1 | . . . . . . . . . . . 4 7 7 7 6 13 13 13 13 13 8 2 2 . . . . . . . Energy Cannon 6 | . 22 28 21 21 . . . . . . . . . . . . . . . . . . . . . . . . . . Ballistic Gun 10 | . 5 . . . 26 25 20 6 6 12 1 . 3 5 . . 1 . . 2 7 10 11 11 11 9 10 8 10 5 Naked Turns . | . . . . . . . . . . . . . . . . . . . . . . . . . . . . . . . Heaviest Build 133 | 12 34 34 63 63 106 111 133 129 125 106 25 25 32 32 52 45 40 35 35 38 41 42 53 52 52 67 62 62 64 74 Greatest Support 88 | 40 40 40 40 40 84 84 84 78 70 70 25 25 40 40 40 50 50 42 42 42 42 48 67 55 55 63 81 79 88 78 Greatest Overweight (x) 3 | 1 . . 1 1 1 1 1 1 1 2 . . 1 1 1 1 . . . . . 3 . . . 1 1 . 1 . Average Overweight (x) . | . . . . 1 . 1 1 1 1 . . . . . . . . . . . . . . . . . . . . . Largest Inventory Capacity 25 | 8 15 15 20 20 25 25 25 25 25 25 8 8 8 8 8 8 8 8 8 8 8 8 8 8 8 8 8 8 8 8 Average Capacity 15 | 7 12 15 18 20 20 25 25 25 25 8 8 8 8 8 8 8 8 8 8 8 8 7 8 8 8 8 8 8 8 7 Most Carried 25 | . 8 9 20 20 20 23 25 25 25 25 8 8 8 8 8 8 8 8 8 8 8 8 8 8 8 8 8 8 8 8 Average Carried 14 | . 5 8 17 19 19 21 22 23 24 8 7 8 7 8 7 7 8 8 8 8 7 7 7 8 8 7 7 7 8 6 Final Capacity 25 | 8 15 15 20 20 25 25 25 25 25 8 8 8 8 8 8 8 8 8 8 8 8 8 8 8 8 8 8 8 8 5 Final Carried 25 | . 8 9 20 20 20 23 25 25 25 6 8 8 8 8 8 8 8 8 8 8 8 8 8 8 8 8 8 8 8 2 Class Distribution -------------------- 41% | Scavenger-Mutant 25% | Mutant 18% | Gunner 7% | Commander-Mutant 6% | Scavenger-Gunner Dominant Class ---------------- Mutant | -10/Materials Mutant | -10/Mines Scavenger-Mutant | -9/Materials Scavenger-Mutant | -9/Mines Gunner | -8/Materials Gunner | -8/Storage Gunner | -8/Garrison Mutant | -7/Factory Scavenger-Mutant | -7/Waste Mutant | -7/Factory Commander-Mutant | -7/Garrison Commander-Mutant | -7/Factory Commander-Mutant | -7/Garrison Commander-Mutant | -7/Factory Mutant | -7/Garrison Scavenger-Mutant | -6/Factory Scavenger-Mutant | -6/Lower Caves Scavenger-Mutant | -6/Lower Caves Scavenger-Mutant | -6/Data Miner Scavenger-Mutant | -5/Proximity Caves Scavenger-Mutant | -5/Factory Scavenger-Mutant | -5/Extension Scavenger-Mutant | -5/Cetus Scavenger-Mutant | -5/Archives Scavenger-Mutant | -5/Hub_04(d) Scavenger-Mutant | -5/Garrison Scavenger-Mutant | -4/Factory Scavenger-Sprinter | -4/Waste Scavenger-Mutant | -4/Factory Scavenger-Mutant | -4/Garrison Resources | -11 -10 -10 -9 -9 -8 -8 -8 -7 -7 -7 -7 -7 -7 -7 -7 -6 -6 -6 -6 -5 -5 -5 -5 -5 -5 -5 -4 -4 -4 -4 ----------- Run | Scr Mat Min Mat Min Mat Sto Gar Fac Was Fac Gar Fac Gar Fac Gar Fac Low Low Dat Pro Fac Ext Cet Arc Hub Gar Fac Was Fac Gar Matter Collected 11550 | 256 95 3 179 303 1437 1307 1016 959 231 644 200 . 321 96 562 107 287 . . 119 125 846 280 55 86 894 583 121 . 438 Remotely 918 | . . . . . . 94 231 593 . . . . . . . . . . . . . . . . . . . . . . Salvage Created 16345 | . 637 121 1663 222 2298 2482 758 807 215 555 200 . 446 120 499 62 335 . . . 91 1347 533 303 59 1042 631 423 . 496 Parts 835 | . 42 20 87 27 139 117 51 38 4 39 7 . 18 6 22 5 16 . . . 1 49 29 17 2 48 20 10 . 21 Haulers Intercepted 27 | . 2 . 6 . 6 6 . 2 . . . . . 3 . . . . . . 1 . . . . . 1 . . . Recyclers Shooed 9 | . . . 2 . 4 . . 2 . . . . . . . . . . . . . . . . . . 1 . . . Parts Field Recycled . | . . . . . . . . . . . . . . . . . . . . . . . . . . . . . . . Retrieved Matter . | . . . . . . . . . . . . . . . . . . . . . . . . . . . . . . . Parts Self-Destructed 16 | . . . . . . . . . . . . . . . . . 15 . . 1 . . . . . . . . . . Prevented . | . . . . . . . . . . . . . . . . . . . . . . . . . . . . . . . Kills | -11 -10 -10 -9 -9 -8 -8 -8 -7 -7 -7 -7 -7 -7 -7 -7 -6 -6 -6 -6 -5 -5 -5 -5 -5 -5 -5 -4 -4 -4 -4 ------- Run | Scr Mat Min Mat Min Mat Sto Gar Fac Was Fac Gar Fac Gar Fac Gar Fac Low Low Dat Pro Fac Ext Cet Arc Hub Gar Fac Was Fac Gar Combat Hostiles Destroyed 293 | . 13 6 23 16 34 38 32 18 1 11 1 . 3 . 19 3 15 . . . . 9 5 3 1 22 7 2 . 11 Melee 1 | . . . . . . . . . . . . . . . 1 . . . . . . . . . . . . . . . Guns 162 | . 5 . . . 34 38 19 . 1 10 1 . 3 . 6 . 2 . . . . 9 5 3 1 13 7 2 . 3 Cannons 84 | . 8 6 23 6 . . 9 13 . 1 . . . . 8 . . . . . . . . . . 2 . . . 8 AOE 46 | . . . . 10 . . 4 5 . . . . . . 4 3 13 . . . . . . . . 7 . . . . Classes Destroyed 21 | . 8 1 3 1 1 . 2 2 1 1 . . . . . . . . . . . 1 . . . . . . . . Worker 6 | . 1 . . 1 1 2 . . . 1 . . . . . . . . . . . . . . . . . . . . Builder 5 | . 1 . . . 1 2 . . . 1 . . . . . . . . . . . . . . . . . . . . Tunneler 4 | . . 2 1 . . . . . . 1 . . . . . . . . . . . . . . . . . . . . Hauler 27 | . 2 . 6 . 6 6 . 2 . . . . . 3 . . . . . . 1 . . . . . 1 . . . Recycler 17 | . 1 . 3 . 2 1 . 5 . 1 . . . . . . . . . . . 4 . . . . . . . . Mechanic 3 | . . . 1 . 2 . . . . . . . . . . . . . . . . . . . . . . . . . Operator 6 | . 1 . 1 . . . . 1 . . . . . . . . . . . . . 2 . 1 . . . . . . Watcher 17 | . 2 . 4 . 5 2 . 1 . . . . . . . 1 . . . . . 1 . . . . 1 . . . Swarmer 78 | . 6 6 3 13 4 . 18 3 . 3 . . 2 . 4 3 8 . . . . . . . . 1 . . . 4 Cutter 8 | . . . . . . . . . . 3 . . . . . . . . . . . . . . . 3 . . . 2 Grunt 125 | . 7 . 13 1 20 24 7 10 . . . . . . 10 . 6 . . . . 5 . . 1 12 6 . . 3 Brawler 2 | . . . . 1 . 1 . . . . . . . . . . . . . . . . . . . . . . . . Duelist 6 | . . . 1 . . . 3 . . . . . . . . . 1 . . . . . . . . . 1 . . . Protector 1 | . . . . . . . . 1 . . . . . . . . . . . . . . . . . . . . . . Sentry 45 | . . . 6 1 9 13 1 1 . 2 . . 1 . 3 . . . . . . 3 . 3 . 2 . . . . Demolisher 1 | . . . . . . . 1 . . . . . . . . . . . . . . . . . . . . . . . Specialist 2 | . . . . . . . 2 . . . . . . . . . . . . . . . . . . . . . . . Hunter 7 | . . . . . 1 . . 1 . 2 . . . . 1 . . . . . . . . . . 2 . . . . Programmer 8 | . . . . . . . . 2 . 1 1 . . . 1 . . . . . . . . . . 1 . . . 2 Behemoth 2 | . . . . . . . . . . . . . . . . . . . . . . 1 . . . 1 . . . . Compactor 3 | . . . . . . . . . 1 . . . . . . . . . . . . . . . . . . 2 . . Cetus Guard 5 | . . . . . . . . . . . . . . . . . . . . . . . 5 . . . . . . . Butcher 1 | . . . . . . . . . . . . . . . . . . . . . . . 1 . . . . . . . Best Kill Streak 8 | . 4 5 5 6 4 7 6 8 1 5 1 . 2 1 5 4 4 . . . 1 3 3 4 1 8 6 1 . 4 Combat Bots Only 8 | . 3 5 5 6 4 6 6 8 1 3 1 . 2 . 5 3 4 . . . . 3 3 3 1 8 5 1 . 4 Max Kills in Single Turn 4 | . 2 1 2 3 2 2 2 2 1 2 1 . 1 1 2 2 4 . . . 1 2 1 1 1 3 2 1 . 1 Gunslinging 1 | . . . . . 1 . 1 . . . . . . . . . . . . . . . . . . . 1 . . . Exploded 4 | . . . . 3 . . 2 2 . . . . . . 2 2 4 . . . . . . . . 3 . . . . Melee 1 | . . . . . . . . . . . . . . . 1 . . . . . . . . . . . . . . . Uniques/NPCs Destroyed 1 | . . . . . . . . . . . . . . . . . . . . . . . 1 . . . . . . . A7 (-5/Cetus) Combat | -11 -10 -10 -9 -9 -8 -8 -8 -7 -7 -7 -7 -7 -7 -7 -7 -6 -6 -6 -6 -5 -5 -5 -5 -5 -5 -5 -4 -4 -4 -4 -------- Run | Scr Mat Min Mat Min Mat Sto Gar Fac Was Fac Gar Fac Gar Fac Gar Fac Low Low Dat Pro Fac Ext Cet Arc Hub Gar Fac Was Fac Gar Damage Taken 12188 | . 217 61 805 316 927 1076 1004 749 . 1067 . . 154 81 1095 73 127 . . 25 . 362 64 . 122 1937 244 . 142 1540 Core 1584 | . 46 15 93 70 69 15 81 89 . 142 . . 30 50 204 . 47 . . 25 . 84 . . . 322 . . . 202 Absorbed by Shields 120 | . . . . . . . . . . . . . . . 41 . . . . . . 18 38 . . 23 . . . . Regen/Repaired (Parts) 2094 | . 110 . 188 . 214 393 . . . . . . . . . . . . . . . 456 70 47 69 217 330 . . . Core Remaining (%) 68 | 100 . 75 . 59 . . 70 . . . . . . . 26 . . . . 91 . . . . . 59 . . . . Volleys Fired 1022 | . 34 6 85 19 106 99 72 54 64 55 3 . 10 17 50 8 17 . . 10 4 71 17 5 11 109 32 13 . 51 Largest 3 | . 2 2 2 2 3 3 3 2 1 2 1 . 2 2 2 2 3 . . 3 2 3 2 2 2 2 2 2 . 2 Hottest 182 | . 136 136 136 136 75 75 103 111 28 111 80 . 108 108 149 149 182 . . 182 66 141 66 68 68 83 70 105 . 105 Shots Fired 1926 | . 68 12 170 31 318 297 140 60 64 101 4 . 14 26 51 12 26 . . 13 7 143 34 10 22 137 58 24 . 84 Gun 1431 | . 20 . . . 318 297 104 9 56 98 4 . 14 26 20 8 15 . . 13 6 125 34 10 22 104 56 23 . 49 Cannon 401 | . 48 12 170 24 . . 33 45 . 2 . . . . 23 . . . . . . . . . . 8 . 1 . 35 Launcher 44 | . . . . 7 . . 3 5 . 1 . . . . 8 3 11 . . . . . . . . 6 . . . . Special 50 | . . . . . . . . 1 8 . . . . . . 1 . . . . 1 18 . . . 19 2 . . . Kinetic 1487 | . 20 . . . 318 297 137 54 56 100 2 . 2 10 23 . 5 . . 9 6 106 34 10 22 112 56 24 . 84 Thermal 345 | . 48 12 170 24 . . . . . . 2 . 12 16 20 8 10 . . 4 . 19 . . . . . . . . Explosive 44 | . . . . 7 . . 3 5 . 1 . . . . 8 3 11 . . . . . . . . 6 . . . . Electromagnetic . | . . . . . . . . . . . . . . . . . . . . . . . . . . . . . . . Robot Hit Streak 36 | . 11 3 14 11 23 28 17 14 36 18 6 . 4 6 16 4 5 . . 5 6 11 6 3 10 14 7 7 . 10 Robot Miss Streak 6 | . 3 1 4 5 3 3 5 2 1 4 2 . 3 3 3 1 2 . . . 2 6 2 2 5 3 2 2 . 5 Penetration Max 2 | . . . . . . . 1 1 . 1 . . . . . . . . . . . 2 1 . 1 1 1 1 . 2 Secondary Targets 14 | . 1 . . . 1 3 3 . . 1 . . . . . . . . . . . 1 . . . 2 2 . . . Max Gunslinging Chain 1 | . 1 . . . 1 1 1 . . 1 . . . . . . . . . . . 1 . . . 1 1 . . . Shots Hit Robots 1311 | . 39 6 114 15 225 207 87 49 56 65 13 . 29 30 39 10 13 . . 3 5 85 32 5 14 71 31 18 . 50 Core Hits 657 | . 26 8 41 16 93 93 43 38 8 26 8 . 13 10 27 6 26 . . . 2 47 18 5 7 44 21 3 . 28 Critical Kills 39 | . . . . . 1 . . . . . . . . . . . . . . . . 12 6 4 1 7 5 2 . 1 Critical Parts Destroyed 33 | . . . . . 2 1 1 . . 1 . . . . . . . . . . . 11 3 . 2 7 3 . . 2 Critical Strikes 108 | . . . . . 3 1 3 6 1 1 1 . 2 1 5 1 1 . . 1 . 28 12 4 3 16 8 5 . 5 Burn 3 | . . . . . . . . . . . . . . . . 1 1 . . . . 1 . . . . . . . . Destroy 84 | . . . . . 3 1 1 . 1 1 . . . . . . . . . 1 . 27 12 4 3 14 8 5 . 3 Blast 17 | . . . . . . . 2 6 . . . . . . 5 . . . . . . . . . . 2 . . . 2 Impale 4 | . . . . . . . . . . . 1 . 2 1 . . . . . . . . . . . . . . . . Melee Attacks 110 | . . . . . . 7 5 . . . 25 . 30 12 9 . 2 . . 10 1 . 9 . . . . . . . Impact 13 | . . . . . . . . . . . . . . . . . 2 . . 10 1 . . . . . . . . . Slashing 21 | . . . . . . 7 5 . . . . . . . . . . . . . . . 9 . . . . . . . Piercing 76 | . . . . . . . . . . . 25 . 30 12 9 . . . . . . . . . . . . . . . Sneak Attacks 13 | . . . . . . 1 . . . . . . 1 1 . . . . . . 1 . 9 . . . . . . . Combat Hostiles 1 | . . . . . . . . . . . . . 1 . . . . . . . . . . . . . . . . . Follow-up Attacks . | . . . . . . . . . . . . . . . . . . . . . . . . . . . . . . . Damage Inflicted 36151 | . 740 148 2506 1042 4078 3753 2764 3637 995 1363 853 . 1265 839 2264 361 1522 . . 64 120 775 755 69 311 2546 876 589 . 1916 Guns 17462 | . 114 . . . 4026 3625 1273 168 995 1136 26 . 257 510 303 145 147 . . 64 21 775 202 69 311 988 876 547 . 884 Cannons 10800 | . 586 135 2476 320 . . 1255 2863 . 105 . . . . 1429 . . . . . . . . . . 557 . 42 . 1032 Explosions 4644 | . . . . 697 . . 236 606 . 122 . . . . 391 216 1375 . . . . . . . . 1001 . . . . Melee 3035 | . . . . . . 78 . . . . 827 . 1008 329 141 . . . . . 99 . 553 . . . . . . . Ramming 210 | . 40 13 30 25 52 50 . . . . . . . . . . . . . . . . . . . . . . . . Kinetic 23228 | . 114 . . . 4026 3625 2528 3031 995 1224 . . 23 124 1429 . 20 . . 14 21 546 202 69 311 1545 876 589 . 1916 Thermal 5071 | . 586 135 2476 374 . . . . . . 26 . 234 386 303 145 127 . . 50 . 229 . . . . . . . . Explosive 4590 | . . . . 643 . . 236 606 . 122 . . . . 391 216 1375 . . . . . . . . 1001 . . . . Electromagnetic . | . . . . . . . . . . . . . . . . . . . . . . . . . . . . . . . Impact 116 | . . . . . . . . . . 17 . . . . . . . . . . 99 . . . . . . . . . Slashing 631 | . . . . . . 78 . . . . . . . . . . . . . . . . 553 . . . . . . . Piercing 2305 | . . . . . . . . . . . 827 . 1008 329 141 . . . . . . . . . . . . . . . Highest Corruption 39 | . . . . . . . . 1 34 37 37 37 38 38 39 1 1 1 1 1 . . . . . 2 3 9 10 11 Average Corruption 20 | . . . . . . . . 1 16 34 37 37 37 38 38 1 1 1 1 1 . . . . . 1 2 7 9 10 Corruption Purged . | . . . . . . . . . . . . . . . . . . . . . . . . . . . . . . . Corruption Blocked . | . . . . . . . . . . . . . . . . . . . . . . . . . . . . . . . Effects 266 | . . . . . . . . 1 16 41 37 3 49 22 40 1 2 . 1 4 . . . . . 19 2 3 2 23 Message Errors 57 | . . . . . . . . 1 7 6 4 1 7 7 8 . 1 . 1 1 . . . . . 7 2 1 1 2 Matter Fused 61 | . . . . . . . . . 3 11 7 . 16 4 8 . . . . 1 . . . . . 6 . . 1 4 Heat Flow Errors 36 | . . . . . . . . . . 3 5 1 8 5 8 . . . . . . . . . . 2 . . . 4 Energy Discharges 26 | . . . . . . . . . 2 3 6 . 7 . 3 . . . . . . . . . . 1 . 1 . 3 Parts Rejected 2 | . . . . . . . . . . . . . 1 1 . . . . . . . . . . . . . . . . Data Loss (minor) 24 | . . . . . . . . . 1 5 2 1 5 1 2 1 . . . 2 . . . . . 1 . 1 . 2 Data Loss (major) 8 | . . . . . . . . . 1 2 2 . . . 1 . . . . . . . . . . 1 . . . 1 Misfires 12 | . . . . . . . . . 1 1 1 . 3 1 2 . . . . . . . . . . 1 . . . 2 Alerts 6 | . . . . . . . . . . 1 3 . 1 . . . 1 . . . . . . . . . . . . . Misdirections 14 | . . . . . . . . . . 2 7 . 1 . 4 . . . . . . . . . . . . . . . Weapon Failures 20 | . . . . . . . . . 1 7 . . . 3 4 . . . . . . . . . . . . . . 5 Overload Shots . | . . . . . . . . . . . . . . . . . . . . . . . . . . . . . . . Overflow Damage 1261 | . 6 . 24 40 . . 241 251 . . 105 . . 27 228 52 77 . . . 75 . . . . 82 . . . 53 Projectiles 879 | . 6 . 24 . . . 241 251 . . . . . . 223 . . . . . . . . . . 81 . . . 53 Explosions 175 | . . . . 40 . . . . . . . . . . 5 52 77 . . . . . . . . 1 . . . . Melee 207 | . . . . . . . . . . . 105 . . 27 . . . . . . 75 . . . . . . . . . Knockbacks 38 | . 1 . . . . 1 4 12 . . . . . . 4 . . . . . . . . . . 7 . . . 9 Impact 2 | . 1 . . . . 1 . . . . . . . . . . . . . . . . . . . . . . . . Kinetic 29 | . . . . . . . 4 9 . . . . . . 4 . . . . . . . . . . 5 . . . 7 Secondary 7 | . . . . . . . . 3 . . . . . . . . . . . . . . . . . 2 . . . 2 Self-Inflicted Damage 346 | . . . . 51 . . . 28 . 28 . . . . 46 28 . . . . . . . . . 165 . . . . Shots 9 | . . . . 2 . . . 1 . 1 . . . . 1 1 . . . . . . . . . 3 . . . . Rammed 29 | . 7 2 5 2 6 7 . . . . . . . . . . . . . . . . . . . . . . . . Targets Rammed 37 | . 9 3 5 3 9 8 . . . . . . . . . . . . . . . . . . . . . . . . Kicked . | . . . . . . . . . . . . . . . . . . . . . . . . . . . . . . . Crushed 8 | . 2 1 . 1 3 1 . . . . . . . . . . . . . . . . . . . . . . . . Highest Temperature 358 | . 185 66 211 16 33 17 2 1 . 208 243 139 208 325 358 47 130 . . 24 . 36 . . . 210 1 . . 254 Average Temperature 59 | . 62 28 48 9 9 12 2 1 . 49 110 87 64 80 120 33 60 . . 16 . 11 . . . 77 1 . . 59 Received Heat Transfer 3115 | . 60 . 273 66 495 558 162 291 . 84 . . 18 45 255 . 36 . . . . 53 . . 18 426 63 . . 212 Siege Activations . | . . . . . . . . . . . . . . . . . . . . . . . . . . . . . . . Robots Corrupted . | . . . . . . . . . . . . . . . . . . . . . . . . . . . . . . . Combat Hostiles . | . . . . . . . . . . . . . . . . . . . . . . . . . . . . . . . Parts Fried . | . . . . . . . . . . . . . . . . . . . . . . . . . . . . . . . Impact Corruptions 2 | . . . . . . . . . . . . . . . . . . . . . 2 . . . . . . . . . Robots Melted . | . . . . . . . . . . . . . . . . . . . . . . . . . . . . . . . Combat Hostiles . | . . . . . . . . . . . . . . . . . . . . . . . . . . . . . . . Parts Melted 9 | . 1 . 3 . . . . . . . . . . . . . 4 . . . . . . . . 1 . . . . Heat Transferred 9799 | . 999 222 4329 605 . . . . . . 50 . 550 900 699 385 348 . . 112 . 600 . . . . . . . . Parts Sabotaged . | . . . . . . . . . . . . . . . . . . . . . . . . . . . . . . . Parts Stolen . | . . . . . . . . . . . . . . . . . . . . . . . . . . . . . . . Parts Stripped . | . . . . . . . . . . . . . . . . . . . . . . . . . . . . . . . Power Chain Reactions . | . . . . . . . . . . . . . . . . . . . . . . . . . . . . . . . Missiles Intercepted . | . . . . . . . . . . . . . . . . . . . . . . . . . . . . . . . Alert | -11 -10 -10 -9 -9 -8 -8 -8 -7 -7 -7 -7 -7 -7 -7 -7 -6 -6 -6 -6 -5 -5 -5 -5 -5 -5 -5 -4 -4 -4 -4 ------- Run | Scr Mat Min Mat Min Mat Sto Gar Fac Was Fac Gar Fac Gar Fac Gar Fac Low Low Dat Pro Fac Ext Cet Arc Hub Gar Fac Was Fac Gar Peak Influence 1947 | . 250 181 297 451 440 497 1947 1223 428 373 695 364 1550 1215 1410 889 . . . . 157 523 836 438 485 1587 1040 351 245 528 Initial 1022 | . . 31 11 115 109 94 249 1022 428 145 261 364 254 813 850 739 . . . . 34 76 196 254 153 339 833 332 245 171 Average 504 | . 135 48 174 324 243 314 973 1001 403 188 561 364 1095 934 1176 846 . . . . 64 287 440 393 338 1047 933 335 245 358 Maximum Alert Level 5 | . 1 . 1 2 2 2 5 4 2 1 2 1 4 4 4 3 . . . . . 2 3 2 2 4 3 1 1 2 Low Security (%) 26 | 100 82 100 57 9 40 10 . . . 64 . . . . . . . . . . 100 34 6 . 20 . . . . 11 Level 1 30 | . 17 . 42 63 50 70 12 . 5 35 4 100 3 . . . . . . . . 44 57 35 30 4 . 100 100 36 Level 2 14 | . . . . 27 8 19 13 . 94 . 95 . 6 . . . . . . . . 21 8 64 48 13 . . . 52 Level 3 16 | . . . . . . . 30 85 . . . . 43 88 28 100 . . . . . . 26 . . 31 100 . . . Level 4 11 | . . . . . . . 32 14 . . . . 46 11 71 . . . . . . . . . . 50 . . . . Level 5 1 | . . . . . . . 10 . . . . . . . . . . . . . . . . . . . . . . . High Security . | . . . . . . . . . . . . . . . . . . . . . . . . . . . . . . . Max Security . | . . . . . . . . . . . . . . . . . . . . . . . . . . . . . . . Squads Dispatched 49 | . 4 . 4 . 6 8 . 5 . 4 . . . 5 . 2 . . . . 2 2 . . 4 . 3 . . . Investigation 18 | . 3 . 3 . 2 3 . . . 1 . . . 2 . 1 . . . . 2 1 . . . . . . . . Extermination 2 | . . . . . . . . 1 . 1 . . . . . . . . . . . . . . . . . . . . Reinforcement 21 | . 1 . 1 . 4 2 . 2 . 2 . . . 2 . 1 . . . . . 1 . . 3 . 2 . . . Assault 3 | . . . . . . . . 2 . . . . . . . . . . . . . . . . . . 1 . . . Garrison 5 | . . . . . . 3 . . . . . . . 1 . . . . . . . . . . 1 . . . . . Intercept . | . . . . . . . . . . . . . . . . . . . . . . . . . . . . . . . Searches Triggered . | . . . . . . . . . . . . . . . . . . . . . . . . . . . . . . . Data Miner Redirects 3 | . . . . . . . . . . . . . . . . . . . . . 2 . . . . . 1 . . . Construction Impeded 2 | . . . . . . . . . . . . . . . . . . . . . . . . . . . 2 . . . Haulers Reinforced 1 | . . . . . . . . 1 . . . . . . . . . . . . . . . . . . . . . . Active Scanning Responses . | . . . . . . . . . . . . . . . . . . . . . . . . . . . . . . . Cargo Convoy Interrupts . | . . . . . . . . . . . . . . . . . . . . . . . . . . . . . . . Alert ID Control Effect 2 | . . . . . . . . . . . . . . . . . . . . . . . . . . 1 1 . . . Stealth | -11 -10 -10 -9 -9 -8 -8 -8 -7 -7 -7 -7 -7 -7 -7 -7 -6 -6 -6 -6 -5 -5 -5 -5 -5 -5 -5 -4 -4 -4 -4 --------- Run | Scr Mat Min Mat Min Mat Sto Gar Fac Was Fac Gar Fac Gar Fac Gar Fac Low Low Dat Pro Fac Ext Cet Arc Hub Gar Fac Was Fac Gar Distress Signals 24 | . 3 . 6 . . 6 . 1 . 1 . . . 1 . 1 . . . . . 2 2 . . . 1 . . . Communications Jammed . | . . . . . . . . . . . . . . . . . . . . . . . . . . . . . . . Distress Signals . | . . . . . . . . . . . . . . . . . . . . . . . . . . . . . . . Times Spotted 507 | . 23 7 41 19 50 44 39 29 6 19 . . 22 15 22 8 17 . . 1 2 29 20 2 10 41 16 4 . 21 Peak Tracking Total 12 | . 4 3 5 4 5 5 7 7 2 7 . . 5 6 7 4 6 . . 2 3 6 9 2 4 10 5 3 2 12 Tactical Retreats 38 | . . 2 2 . 1 . 8 1 . . . . 2 . 4 . 2 . . 2 . 5 . . . 4 1 . . 4 Traps | -11 -10 -10 -9 -9 -8 -8 -8 -7 -7 -7 -7 -7 -7 -7 -7 -6 -6 -6 -6 -5 -5 -5 -5 -5 -5 -5 -4 -4 -4 -4 ------- Run | Scr Mat Min Mat Min Mat Sto Gar Fac Was Fac Gar Fac Gar Fac Gar Fac Low Low Dat Pro Fac Ext Cet Arc Hub Gar Fac Was Fac Gar Traps Triggered 38 | . 1 . 2 . . 1 3 3 . . 1 . 8 2 5 1 . . . . . 1 . . . 5 4 . 1 . Indirectly . | . . . . . . . . . . . . . . . . . . . . . . . . . . . . . . . Trap Hack Attempts . | . . . . . . . . . . . . . . . . . . . . . . . . . . . . . . . Triggered . | . . . . . . . . . . . . . . . . . . . . . . . . . . . . . . . Disarmed . | . . . . . . . . . . . . . . . . . . . . . . . . . . . . . . . Reprogrammed . | . . . . . . . . . . . . . . . . . . . . . . . . . . . . . . . Reused . | . . . . . . . . . . . . . . . . . . . . . . . . . . . . . . . Traps Extracted . | . . . . . . . . . . . . . . . . . . . . . . . . . . . . . . . Installed . | . . . . . . . . . . . . . . . . . . . . . . . . . . . . . . . Triggered . | . . . . . . . . . . . . . . . . . . . . . . . . . . . . . . . Machines | -11 -10 -10 -9 -9 -8 -8 -8 -7 -7 -7 -7 -7 -7 -7 -7 -6 -6 -6 -6 -5 -5 -5 -5 -5 -5 -5 -4 -4 -4 -4 ---------- Run | Scr Mat Min Mat Min Mat Sto Gar Fac Was Fac Gar Fac Gar Fac Gar Fac Low Low Dat Pro Fac Ext Cet Arc Hub Gar Fac Was Fac Gar Machines Disabled 53 | . . . 4 2 1 3 7 . . 2 5 . 3 . 3 . . . . . . 1 2 2 1 13 3 . . 1 Max in Single Turn 2 | . . . 1 1 1 1 2 . . 1 1 . 1 . 1 . . . . . . 1 . 1 1 1 1 . . 1 Garrison Access 1 | . . . . . . . . 1 . . . . . . . . . . . . . . . . . . . . . . Garrison Relay 18 | . . . . . . . 2 . . . 5 . 3 . 2 . . . . . . . . . . 5 . . . 1 Phase Generator 1 | . . . . . . . 1 . . . . . . . . . . . . . . . . . . . . . . . Machines Sabotaged . | . . . . . . . . . . . . . . . . . . . . . . . . . . . . . . . Garrisons Compromised . | . . . . . . . . . . . . . . . . . . . . . . . . . . . . . . . Overloaded Fab Kills . | . . . . . . . . . . . . . . . . . . . . . . . . . . . . . . . Hacking | -11 -10 -10 -9 -9 -8 -8 -8 -7 -7 -7 -7 -7 -7 -7 -7 -6 -6 -6 -6 -5 -5 -5 -5 -5 -5 -5 -4 -4 -4 -4 --------- Run | Scr Mat Min Mat Min Mat Sto Gar Fac Was Fac Gar Fac Gar Fac Gar Fac Low Low Dat Pro Fac Ext Cet Arc Hub Gar Fac Was Fac Gar Machines Accessed 92 | . 10 . 13 . 8 11 3 4 . 6 1 2 3 6 1 2 1 . 4 . 4 4 . . 2 2 3 . 1 1 Terminals 60 | . 7 . 10 . 6 8 3 2 . 3 1 . 3 3 1 . 1 . . . 3 3 . . 1 2 2 . . 1 Fabricators 6 | . . . . . . . . 1 . 1 . 1 . 2 . . . . . . 1 . . . . . . . . . Repair Stations 10 | . 1 . 2 . 2 2 . . . . . . . . . 1 . . . . . 1 . . . . 1 . . . Recycling Units 4 | . 2 . 1 . . . . . . 1 . . . . . . . . . . . . . . . . . . . . Scanalyzers 1 | . . . . . . . . . . . . . . . . 1 . . . . . . . . . . . . . . Garrison Access 7 | . . . . . . 1 . 1 . 1 . 1 . 1 . . . . . . . . . . 1 . . . 1 . Total Hacks 288 | . 40 . 44 . 30 36 7 7 . 15 2 3 5 15 2 5 1 . 30 . 7 18 . . 4 4 8 . 1 4 Successful 169 | . 29 . 25 . 15 22 2 4 . 6 . 1 . 7 . 1 1 . 30 . 2 13 . . 4 1 4 . 1 1 Failed 118 | . 10 . 19 . 15 14 5 3 . 9 2 2 5 8 2 4 . . . . 5 5 . . . 3 4 . . 3 Catastrophic 17 | . . . 1 . 1 . 2 1 . 1 1 . 3 2 1 . . . . . 1 1 . . . 2 . . . . Database Lockouts 1 | . 1 . . . . . . . . . . . . . . . . . . . . . . . . . . . . . Manual 134 | . 29 . 34 . 24 17 2 1 . 5 . . . 10 . . . . . . 3 2 1 . 2 1 . . . 3 Terminals 186 | . 32 . 39 . 24 27 7 4 . 6 2 . 5 9 2 . 1 . . . 4 8 . . 3 4 5 . . 4 Fabricators 15 | . . . . . . . . 2 . 3 . 2 . 5 . . . . . . 3 . . . . . . . . . Repair Stations 38 | . 6 . 4 . 6 8 . . . . . . . . . 1 . . . . . 10 . . . . 3 . . . Recycling Units 8 | . 2 . 1 . . . . . . 5 . . . . . . . . . . . . . . . . . . . . Scanalyzers 4 | . . . . . . . . . . . . . . . . 4 . . . . . . . . . . . . . . Garrison Access 7 | . . . . . . 1 . 1 . 1 . 1 . 1 . . . . . . . . . . 1 . . . 1 . Terminal Hacks 85 | . 15 . 12 . 5 9 2 2 . . . . . 1 . . 1 . 30 . . 2 . . 2 1 2 . . 1 Record 13 | . 1 . . . . . . . . . . . . . . . 1 . 11 . . . . . . . . . . . Part Schematic 11 | . . . . . . . . . . . . . . . . . . . 11 . . . . . . . . . . . Robot Schematic 5 | . . . . . . . . . . . . . . . . . . . 5 . . . . . . . . . . . Robot Analysis 2 | . 2 . . . . . . . . . . . . . . . . . . . . . . . . . . . . . Prototype ID Bank 9 | . 5 . 1 . . . . . . . . . . . . . . . 3 . . . . . . . . . . . Open Door 3 | . . . . . . 2 1 . . . . . . . . . . . . . . . . . . . . . . . Open DSF 2 | . . . . . . . . 1 . . . . . . . . . . . . . . . . . . 1 . . . Branch Access Points 2 | . . . 1 . 1 . . . . . . . . . . . . . . . . . . . . . . . . . Emergency Access Points 2 | . . . . . . . . . . . . . . . . . . . . . . . . . . 1 . . . 1 Machine Index 1 | . 1 . . . . . . . . . . . . . . . . . . . . . . . . . . . . . Terminal Index 5 | . 2 . 1 . . 1 . . . . . . . . . . . . . . . 1 . . . . . . . . Alert Level 9 | . 2 . 3 . 1 2 . . . . . . . 1 . . . . . . . . . . . . . . . . Unreport Threat 8 | . . . 1 . 3 3 . . . . . . . . . . . . . . . 1 . . . . . . . . Locate Traps 1 | . . . . . . 1 . . . . . . . . . . . . . . . . . . . . . . . . Hauler Manifests 6 | . 1 . 2 . . . . 1 . . . . . . . . . . . . . . . . 1 . 1 . . . Zone Layout 5 | . 1 . 3 . . . . . . . . . . . . . . . . . . . . . 1 . . . . . Patrol Navigation 1 | . . . . . . . 1 . . . . . . . . . . . . . . . . . . . . . . . Fabricator Hacks 4 | . . . . . . . . . . 1 . . . 2 . . . . . . 1 . . . . . . . . . Network Status 2 | . . . . . . . . . . 1 . . . 1 . . . . . . . . . . . . . . . . Load Schematic 1 | . . . . . . . . . . . . . . . . . . . . . 1 . . . . . . . . . Build 1 | . . . . . . . . . . . . . . 1 . . . . . . . . . . . . . . . . Repair Station Hacks 32 | . 6 . 4 . 4 6 . . . . . . . . . . . . . . . 10 . . . . 2 . . . Scan Component 16 | . 3 . 2 . 2 3 . . . . . . . . . . . . . . . 5 . . . . 1 . . . Repair 16 | . 3 . 2 . 2 3 . . . . . . . . . . . . . . . 5 . . . . 1 . . . Recycling Unit Hacks 2 | . . . . . . . . . . 2 . . . . . . . . . . . . . . . . . . . . Retrieve Matter 1 | . . . . . . . . . . 1 . . . . . . . . . . . . . . . . . . . . Retrieve Components 1 | . . . . . . . . . . 1 . . . . . . . . . . . . . . . . . . . . Scanalyzer 1 | . . . . . . . . . . . . . . . . 1 . . . . . . . . . . . . . . Insert Component 1 | . . . . . . . . . . . . . . . . 1 . . . . . . . . . . . . . . Garrison Access Hacks 7 | . . . . . . 1 . 1 . 1 . 1 . 1 . . . . . . . . . . 1 . . . 1 . Unlock Access 6 | . . . . . . 1 . . . 1 . 1 . 1 . . . . . . . . . . 1 . . . 1 . Seal Access 1 | . . . . . . . . 1 . . . . . . . . . . . . . . . . . . . . . . Unauthorized Hacks 38 | . 8 . 9 . 6 6 . 1 . 2 . . . 3 . . . . . . 1 1 . . 1 . . . . . Terminals 33 | . 6 . 8 . 6 6 . 1 . 1 . . . 2 . . . . . . 1 1 . . 1 . . . . . Botnet 32 | . 6 . 7 . 6 6 . 1 . 1 . . . 2 . . . . . . 1 1 . . 1 . . . . . Disrupt 1 | . . . 1 . . . . . . . . . . . . . . . . . . . . . . . . . . . Fabricators 2 | . . . . . . . . . . 1 . . . 1 . . . . . . . . . . . . . . . . Haulers 2 | . . . . . . . . . . 1 . . . 1 . . . . . . . . . . . . . . . . Repair Stations . | . . . . . . . . . . . . . . . . . . . . . . . . . . . . . . . Recycling Units 3 | . 2 . 1 . . . . . . . . . . . . . . . . . . . . . . . . . . . Tunnel 3 | . 2 . 1 . . . . . . . . . . . . . . . . . . . . . . . . . . . Scanalyzers . | . . . . . . . . . . . . . . . . . . . . . . . . . . . . . . . Garrison Access . | . . . . . . . . . . . . . . . . . . . . . . . . . . . . . . . Data Cores Recovered 2 | . . . . . . . . 1 . . . . . . . . . . . . . 1 . . . . . . . . Used 1 | . . . . . . . . . . . . . . . . . . . . . . 1 . . . . . . . . Hacking Detections 74 | . 5 . 12 . 8 9 3 3 . 6 1 1 3 4 1 2 1 . . . 4 4 . . 1 2 2 . 1 1 Full Trace Events 17 | . . . . . 3 3 2 . . 1 1 . 1 2 . 1 . . . . 1 1 . . . 1 . . . . Feedback Events 2 | . . . . . . . . . . . . . 1 . . . . . . . 1 . . . . . . . . . Corruption 1 | . . . . . . . . . . . . . 1 . . . . . . . . . . . . . . . . . Hackware Fried 1 | . . . . . . . . . . . . . . . . . . . . . 1 . . . . . . . . . Feedback Blocked . | . . . . . . . . . . . . . . . . . . . . . . . . . . . . . . . Robot Schematics Acquired 5 | . . . . . . . . . . . . . . . . . . . 5 . . . . . . . . . . . Robots Built 4 | . . . . . . . . . . . . . . 4 . . . . . . . . . . . . . . . . Authchips . | . . . . . . . . . . . . . . . . . . . . . . . . . . . . . . . Time 134 | . . . . . . . . . . . . . . 134 . . . . . . . . . . . . . . . . Total Robot Build Rating 16 | . . . . . . . . . . . . . . 16 . . . . . . . . . . . . . . . . Part Schematics Acquired 11 | . . . . . . . . . . . . . . . . . . . 11 . . . . . . . . . . . Parts Built . | . . . . . . . . . . . . . . . . . . . . . . . . . . . . . . . Authchips . | . . . . . . . . . . . . . . . . . . . . . . . . . . . . . . . Time . | . . . . . . . . . . . . . . . . . . . . . . . . . . . . . . . Total Part Build Rating . | . . . . . . . . . . . . . . . . . . . . . . . . . . . . . . . Parts Repaired 16 | . 3 . 2 . 2 3 . . . . . . . . . . . . . . . 5 . . . . 1 . . . Time 729 | . 78 . 58 . 76 132 . . . . . . . . . . . . . . . 317 . . . . 68 . . . Parts Recycled . | . . . . . . . . . . . . . . . . . . . . . . . . . . . . . . . Recycled Matter . | . . . . . . . . . . . . . . . . . . . . . . . . . . . . . . . Retrieved Matter . | . . . . . . . . . . . . . . . . . . . . . . . . . . . . . . . Retrieved Components 3 | . . . . . . . . . . 3 . . . . . . . . . . . . . . . . . . . . Parts Scanalyzed 1 | . . . . . . . . . . . . . . . . 1 . . . . . . . . . . . . . . Part Schematics Acquired . | . . . . . . . . . . . . . . . . . . . . . . . . . . . . . . . Parts Damaged . | . . . . . . . . . . . . . . . . . . . . . . . . . . . . . . . Bothacking | -11 -10 -10 -9 -9 -8 -8 -8 -7 -7 -7 -7 -7 -7 -7 -7 -6 -6 -6 -6 -5 -5 -5 -5 -5 -5 -5 -4 -4 -4 -4 ------------ Run | Scr Mat Min Mat Min Mat Sto Gar Fac Was Fac Gar Fac Gar Fac Gar Fac Low Low Dat Pro Fac Ext Cet Arc Hub Gar Fac Was Fac Gar Used RIF Installer 5 | . . . . . . . 1 . . . 1 . 1 . 1 . . . . . . . . . . 1 . . . . Coupler Efficiency 1 | . . . . . . . . . . . . . . . 1 . . . . . . . . . . . . . . . Zone Cloak 1 | . . . . . . . . . . . 1 . . . . . . . . . . . . . . . . . . . Watcher Feeds 1 | . . . . . . . . . . . . . . . . . . . . . . . . . . 1 . . . . Alert ID Control 1 | . . . . . . . . . . . . . 1 . . . . . . . . . . . . . . . . . Robots Hacked 15 | . . . . . . . . 1 6 . . . . . . . . . . . 1 . . . . 5 2 . . . Non-combat 4 | . . . . . . . . 1 . . . . . . . . . . . . 1 . . . . . 2 . . . Combat 11 | . . . . . . . . . 6 . . . . . . . . . . . . . . . . 5 . . . . Robot Hacks Applied 15 | . . . . . . . . 1 6 . . . . . . . . . . . 1 . . . . 5 2 . . . find_chute 3 | . . . . . . . . 1 . . . . . . . . . . . . 1 . . . . . 1 . . . find_station 1 | . . . . . . . . . . . . . . . . . . . . . . . . . . . 1 . . . ignore_targets 6 | . . . . . . . . . 6 . . . . . . . . . . . . . . . . . . . . . overwrite_iff 1 | . . . . . . . . . . . . . . . . . . . . . . . . . . 1 . . . . formatsys_high 4 | . . . . . . . . . . . . . . . . . . . . . . . . . . 4 . . . . Relay Couplers Released 74 | . . . . . . . 7 . . . 23 . 13 . 8 . . . . . . . . . . 19 . . . 4 Machine Destruction 71 | . . . . . . . 7 . . . 20 . 13 . 8 . . . . . . . . . . 19 . . . 4 Programmers 3 | . . . . . . . . . . . 3 . . . . . . . . . . . . . . . . . . . Attached 9 | . . . . . . . . . 1 . . . . . . . . . . . . . . . . 8 . . . . Fabnet Peak Effective % . | . . . . . . . . . . . . . . . . . . . . . . . . . . . . . . . Robots Rewired 38 | . . . . . . . 6 . . . 7 . 5 . 2 . . . . . . 14 . . . 4 . . . . Allies Hacked . | . . . . . . . . . . . . . . . . . . . . . . . . . . . . . . . Hacks Repelled . | . . . . . . . . . . . . . . . . . . . . . . . . . . . . . . . Allies | -11 -10 -10 -9 -9 -8 -8 -8 -7 -7 -7 -7 -7 -7 -7 -7 -6 -6 -6 -6 -5 -5 -5 -5 -5 -5 -5 -4 -4 -4 -4 -------- Run | Scr Mat Min Mat Min Mat Sto Gar Fac Was Fac Gar Fac Gar Fac Gar Fac Low Low Dat Pro Fac Ext Cet Arc Hub Gar Fac Was Fac Gar Total Allies 73 | . . 2 . 4 . . 7 . 1 . 11 . 7 4 2 . . . . 1 . 20 5 . . 9 . . . . Largest Group 11 | . . 2 2 3 . . 5 . 1 . 11 11 11 6 3 1 . . . 1 1 9 11 7 6 3 2 . . . Highest-Rated Group 791 | . . 42 42 40 . . 142 . 31 . 343 343 343 259 86 20 . . . 96 96 395 791 454 418 185 61 . . . Highest-Rated Ally 159 | . . 31 31 31 . . 40 . 31 . 73 73 73 62 62 20 . . . 96 96 159 159 96 96 96 49 . . . Total Orders 2 | . . . . . . . . . . . . . . . . . . . . . . . 2 . . . . . . . STAY 1 | . . . . . . . . . . . . . . . . . . . . . . . 1 . . . . . . . FOLLOW 1 | . . . . . . . . . . . . . . . . . . . . . . . 1 . . . . . . . Ally Attacks 675 | . . . 30 31 . . 40 . 22 . 7 . 112 73 10 . . . . 3 5 122 105 11 39 45 20 . . . Total Damage 16474 | . . . 545 437 . . 863 . 355 . 224 . 3509 1500 154 . . . . 136 446 3349 2142 346 838 1329 301 . . . Kills 131 | . . . 6 6 . . 9 . 1 . . . 35 13 1 . . . . 1 4 21 14 1 8 8 3 . . . Allies Corrupted 1 | . . . . 1 . . . . . . . . . . . . . . . . . . . . . . . . . . Allies Melted 1 | . . . . . . . . . . . . . . . 1 . . . . . . . . . . . . . . . Intel | -11 -10 -10 -9 -9 -8 -8 -8 -7 -7 -7 -7 -7 -7 -7 -7 -6 -6 -6 -6 -5 -5 -5 -5 -5 -5 -5 -4 -4 -4 -4 ------- Run | Scr Mat Min Mat Min Mat Sto Gar Fac Was Fac Gar Fac Gar Fac Gar Fac Low Low Dat Pro Fac Ext Cet Arc Hub Gar Fac Was Fac Gar Robot Analysis Total 2 | . 2 . . . . . . . . . . . . . . . . . . . . . . . . . . . . . Derelict Logs Recovered 7 | . . 1 . 2 . . . . . . . . . . . . 2 1 . 1 . . . . . . . . . . Drone Launches . | . . . . . . . . . . . . . . . . . . . . . . . . . . . . . . . Drone Recoveries . | . . . . . . . . . . . . . . . . . . . . . . . . . . . . . . . Exploration | -11 -10 -10 -9 -9 -8 -8 -8 -7 -7 -7 -7 -7 -7 -7 -7 -6 -6 -6 -6 -5 -5 -5 -5 -5 -5 -5 -4 -4 -4 -4 ------------- Run | Scr Mat Min Mat Min Mat Sto Gar Fac Was Fac Gar Fac Gar Fac Gar Fac Low Low Dat Pro Fac Ext Cet Arc Hub Gar Fac Was Fac Gar Turns Passed 23677 | 81 1376 788 2572 1805 2228 1961 2267 1191 423 617 553 78 1027 324 576 165 303 60 46 311 278 1470 419 94 137 1428 541 83 64 411 Spaces Moved 15259 | 58 643 474 991 712 915 552 765 399 115 728 962 119 1156 325 530 279 466 124 96 480 411 921 235 50 118 1429 603 130 130 343 Core 20 | 20 . . . . . . . . . . . . . . . . . . . . . . . . . . . . . . Treads 5607 | 38 643 474 991 712 915 552 765 399 115 3 . . . . . . . . . . . . . . . . . . . . Legs . | . . . . . . . . . . . . . . . . . . . . . . . . . . . . . . . Wheels . | . . . . . . . . . . . . . . . . . . . . . . . . . . . . . . . Hover 9632 | . . . . . . . . . . 725 962 119 1156 325 530 279 466 124 96 480 411 921 235 50 118 1429 603 130 130 343 Flight . | . . . . . . . . . . . . . . . . . . . . . . . . . . . . . . . Fastest Speed 28 | 50 160 160 160 240 160 240 235 235 235 42 42 42 42 45 38 38 43 48 48 48 48 45 45 45 45 45 28 28 28 44 Average Speed 110 | 125 160 160 211 240 185 240 237 235 235 44 42 42 46 46 42 39 46 48 48 48 48 92 46 45 45 64 55 28 38 44 Slowest Speed 290 | 160 160 160 240 240 240 240 240 235 235 235 42 42 105 105 111 104 48 48 48 48 48 290 48 45 45 126 150 28 108 48 Overloaded Moves . | . . . . . . . . . . . . . . . . . . . . . . . . . . . . . . . Propulsion Burnouts . | . . . . . . . . . . . . . . . . . . . . . . . . . . . . . . . Robots Hopped . | . . . . . . . . . . . . . . . . . . . . . . . . . . . . . . . Cave-ins Triggered . | . . . . . . . . . . . . . . . . . . . . . . . . . . . . . . . Exploration Rate (%) 54 | 3 82 94 95 98 82 93 98 13 82 18 96 4 90 10 38 5 62 25 72 63 13 88 60 66 8 94 14 75 5 42 Regions Visited 30 Branch Regions 11 Pre-discovered Areas 5 | . 2 . 1 . . . . . . . . . . . . . . 1 1 . . . . . . . . . . . Known Exits Taken 12 | . . . 1 . 1 1 . . . 1 . 1 . 1 . 1 1 1 1 . . . . . 1 . . . 1 . Unknown Exits Taken 9 | 1 1 1 . 1 . . . . . . . . . . . . . . . 1 1 1 1 1 . . . . . . Scrap Searched 6 | . . 1 . 1 . . . . . . . . . . . . 1 . . 3 . . . . . . . . . . Spaces Dug 72 | . . . . 10 . 5 4 3 . 1 2 . 3 . . . 11 . . 11 . . . . . 19 3 . . . Terrain Destroyed 560 | . . . . 91 . 5 108 35 . 7 2 . 3 . 40 34 114 . . 12 . 2 . 2 3 68 19 3 . 12 Melee 25 | . . . . . . 5 4 . . . 2 . 3 . . . 1 . . 10 . . . . . . . . . . Projectile 82 | . . . . 1 . . 17 13 . 3 . . . . 1 . . . . 1 . . . 2 3 8 19 3 . 11 AOE 448 | . . . . 90 . . 87 22 . 3 . . . . 39 34 113 . . . . . . . . 60 . . . . Terrain Rammed . | . . . . . . . . . . . . . . . . . . . . . . . . . . . . . . . Walls Destroyed . | . . . . . . . . . . . . . . . . . . . . . . . . . . . . . . . Machines Disabled . | . . . . . . . . . . . . . . . . . . . . . . . . . . . . . . . Actions | -11 -10 -10 -9 -9 -8 -8 -8 -7 -7 -7 -7 -7 -7 -7 -7 -6 -6 -6 -6 -5 -5 -5 -5 -5 -5 -5 -4 -4 -4 -4 --------- Run | Scr Mat Min Mat Min Mat Sto Gar Fac Was Fac Gar Fac Gar Fac Gar Fac Low Low Dat Pro Fac Ext Cet Arc Hub Gar Fac Was Fac Gar Total 20392 | 63 919 490 1301 777 1276 999 1086 566 209 953 1069 146 1586 447 794 324 526 123 95 530 483 1457 505 110 179 1808 754 152 144 521 Wait 2966 | . 214 7 161 28 187 305 161 71 22 112 22 26 246 64 126 19 29 . . 24 53 404 222 54 49 150 89 4 4 113 Move 15224 | 57 642 473 990 711 914 551 763 399 114 727 960 117 1154 324 527 278 465 123 95 479 410 920 234 49 117 1427 603 129 129 343 Hop . | . . . . . . . . . . . . . . . . . . . . . . . . . . . . . . . Pick Up 137 | . 8 1 23 3 18 8 11 12 1 8 5 . 3 1 2 3 . . . . 2 9 1 . 1 12 3 1 . 1 Fast Attach 110 | 6 6 . 3 . 2 5 2 . 1 10 2 . 4 3 7 5 2 . . 1 3 15 6 1 . 15 7 2 . 2 Attach 61 | . . . 4 . 7 2 4 7 1 10 1 . 3 . 5 3 . . . . 1 . . . . 6 1 . . 6 Detach 17 | . . . . . . . 1 . . 5 . . 1 . 3 2 . . . . . . 2 . . 2 . . . 1 Swap 139 | . 2 . 12 7 11 7 10 17 3 3 4 1 3 1 2 1 9 . . 3 5 5 5 . . 14 6 . 6 2 Drop 183 | . 4 . 18 6 22 5 9 4 3 23 5 1 4 3 3 5 2 . . 3 4 10 9 1 1 20 8 3 5 2 Fire 1022 | . 34 6 85 19 106 99 72 54 64 55 3 . 10 17 50 8 17 . . 10 4 71 17 5 11 109 32 13 . 51 Melee 110 | . . . . . . 7 5 . . . 25 . 30 12 9 . 2 . . 10 1 . 9 . . . . . . . Ram . | . . . . . . . . . . . . . . . . . . . . . . . . . . . . . . . Kick . | . . . . . . . . . . . . . . . . . . . . . . . . . . . . . . . Crush 37 | . 9 3 5 3 9 8 . . . . . . . . . . . . . . . . . . . . . . . . Escape Stasis 221 | . . . . . . 2 6 2 . . . 1 95 22 35 . . . . . . . . . . 53 5 . . . Rewire 165 | . . . . . . . 42 . . . 42 . 33 . 25 . . . . . . 23 . . . . . . . . Trap . | . . . . . . . . . . . . . . . . . . . . . . . . . . . . . . . Miscellaneous . | . . . . . . . . . . . . . . . . . . . . . . . . . . . . . . . Route ------- -11/Scrapyard -10/Materials (discovered 4 exits: *Mat x2 / [*Min x2]) -10/Mines (discovered 2 exits: *Mat x2) -9/Materials (discovered 4 exits: *Mat x3 / *Min) -9/Mines (discovered 3 exits: *Mat x2 / [*Zio]) -8/Materials (discovered 4 exits: *Fac x2 / *Sto x2) -8/Storage (discovered 2 exits: *Fac / Gar) -8/Garrison (discovered 3 exits: *Fac x3) -7/Factory -7/Waste -7/Factory (discovered 2 exits: *Fac / Gar) -7/Garrison (discovered 3 exits: *Fac x3) -7/Factory -7/Garrison (discovered 4 exits: *Fac x3 / *Fac) -7/Factory -7/Garrison -6/Factory -6/Lower Caves -6/Lower Caves -6/Data Miner -5/Proximity Caves -5/Factory -5/Extension (discovered 2 exits: *Fac / *Cet) -5/Cetus (discovered 2 exits: *Fac / [*Arc]) -5/Archives -5/Hub_04(d) -5/Garrison (discovered 3 exits: *Fac x3) -4/Factory -4/Waste -4/Factory -4/Garrison (discovered 1 exit: *Fac) History --------- Turn | Location | Event 6 | -11/Scrapyard | Discovered new exit (range 13) 82 | -11/Scrapyard | Entered Materials 242 | -10/Materials | Discovered new exit (range 12) 255 | -10/Materials | Central database locked down 304 | -10/Materials | Build established: Mutant 362 | -10/Materials | Discovered new exit (range 7) 705 | -10/Materials | Discovered new exit (range 11) 963 | -10/Materials | Discovered new exit (range 16) 1287 | -10/Materials | Repaired Lgt. Treads 1314 | -10/Materials | Repaired Lgt. Treads 1342 | -10/Materials | Repaired Ion Engine 1458 | -10/Materials | Entered Mines 1495 | -10/Mines | Discovered new exit (range 8) 1531 | -10/Mines | Met a Derelict bent on vengeance 1554 | -10/Mines | Discovered new exit (range 12) 1639 | -10/Mines | A weapon hastily lodged in a ceiling crevice suddenly fell to the ground 1685 | -10/Mines | Learned Materials non-interactive machine intel 1803 | -10/Mines | Found a hidden stash of uninstalled traps 2246 | -10/Mines | Entered Materials 2246 | -9/Materials | Accompanied by 2 allies 2246 | -9/Materials | Evolved 2 slots: Utility x2 2247 | -9/Materials | Loaded intel: 56 non-interactive machine locations 2251 | -9/Materials | Led the pair of lost Derelicts to an unsafe place 2493 | -9/Materials | Identified exit to Mines 2624 | -9/Materials | Build established: Scavenger-Mutant 2717 | -9/Materials | Discovered new exit (range 8) 3348 | -9/Materials | Repaired Particle Cannon 3667 | -9/Materials | Repaired Lgt. Treads 3963 | -9/Materials | Discovered new exit (range 7) 4541 | -9/Materials | Discovered new exit (range 15) 4818 | -9/Materials | Entered Mines 4821 | -9/Mines | Received a Mining Laser from a helpful Derelict 4822 | -9/Mines | Discovered new exit (range 11) 4834 | -9/Mines | Discovered new exit (range 5) 5533 | -9/Mines | Assisted by bots powering up and referring to "LRC-V3" 5559 | -9/Mines | Learned Materials trap positions 5833 | -9/Mines | A Derelict revealed a hidden shortcut to a safe place 6623 | -9/Mines | Entered Materials 6623 | -8/Materials | Evolved 2 slots: Propulsion x1, Weapon x1 6624 | -8/Materials | Identified exit to Factory 6625 | -8/Materials | Loaded intel: 14 trap records 6924 | -8/Materials | Build established: Scavenger-Gunner 7829 | -8/Materials | Build established: Gunner 7888 | -8/Materials | Repaired Minigun 8022 | -8/Materials | Discovered new exit (range 11) 8180 | -8/Materials | Repaired Minigun 8286 | -8/Materials | Discovered exit to Factory (range 4) 8348 | -8/Materials | Identified exit to Storage 8851 | -8/Materials | Entered Storage 9078 | -8/Storage | Garrison activated, responded to threat 9188 | -8/Storage | Repaired Med. Treads 9233 | -8/Storage | Repaired Med. Treads 9795 | -8/Storage | Discovered exit to Factory (range 16) 10111 | -8/Storage | Garrison activated, responded to threat 10268 | -8/Storage | Garrison activated, responded to threat 10347 | -8/Storage | Repaired Med. Treads 10810 | -8/Storage | Identified exit to Garrison 10812 | -8/Storage | Entered Garrison 10900 | -8/Garrison | Phase Generator disabled 11019 | -8/Garrison | Heavy support dispatched to Factory 11188 | -8/Garrison | Triggered checkpoint 11342 | -8/Garrison | Triggered checkpoint 11356 | -8/Garrison | Triggered checkpoint 11506 | -8/Garrison | Discovered exit to Factory (range 10) 11938 | -8/Garrison | Triggered checkpoint 11983 | -8/Garrison | Rescued a captive Derelict 12050 | -8/Garrison | Triggered checkpoint 12132 | -8/Garrison | Triggered checkpoint 12262 | -8/Garrison | Garrison Relay disabled 12532 | -8/Garrison | Triggered checkpoint 12582 | -8/Garrison | Discovered exit to Factory (range 7) 12669 | -8/Garrison | Spotted B-75 Beast 12669 | -8/Garrison | Spotted B-75 Beast 12802 | -8/Garrison | Triggered checkpoint 12925 | -8/Garrison | Installed Relay Interface Framework 12947 | -8/Garrison | Garrison Relay disabled 12976 | -8/Garrison | Discovered exit to Factory (range 12) 13079 | -8/Garrison | Entered Factory 13079 | -7/Factory | Evolved 2 slots: Utility x2 13101 | -7/Factory | Build established: Mutant 13479 | -7/Factory | First assault squad dispatched 13720 | -7/Factory | Discovered new exit (range 5) 13729 | -7/Factory | Identified exit to Lower Caves 14003 | -7/Factory | Destroyed 8 combat bots 14004 | -7/Factory | Lost 4 parts (2n2w) 14270 | -7/Factory | Sucked down chute 14270 | -7/Factory | Entered Waste 14271 | -7/Waste | Met a frightened Derelict 14285 | -7/Waste | EMP discharged 14307 | -7/Waste | Spotted C-40 Crusher 14336 | -7/Waste | Allies destroyed C-40 Crusher 14337 | -7/Waste | Spotted C-40 Crusher 14337 | -7/Waste | Spotted C-40 Crusher 14352 | -7/Waste | Spotted C-40 Crusher 14385 | -7/Waste | EMP discharged 14385 | -7/Waste | System corruption reached 10% 14399 | -7/Waste | Spotted C-40 Crusher 14431 | -7/Waste | Destroyed C-40 Crusher 14461 | -7/Waste | Spotted C-40 Crusher 14485 | -7/Waste | EMP discharged 14585 | -7/Waste | EMP discharged 14658 | -7/Waste | Discovered new exit (range 16) 14685 | -7/Waste | EMP discharged 14685 | -7/Waste | System corruption reached 30% 14691 | -7/Waste | Identified exit to Factory 14693 | -7/Waste | Entered Factory 15295 | -7/Factory | Discovered new exit (range 11) 15298 | -7/Factory | Identified exit to Factory 15300 | -7/Factory | Lost 3 parts (2n1w) 15307 | -7/Factory | Identified exit to Garrison 15310 | -7/Factory | Entered Garrison 15310 | -7/Garrison | Discovered recently destroyed garrison 15320 | -7/Garrison | Rescued a captive Derelict 15324 | -7/Garrison | Rescued a captive Derelict 15329 | -7/Garrison | Expanded RIF knowledge: Zone Cloak 15335 | -7/Garrison | Garrison Relay disabled 15457 | -7/Garrison | Garrison Relay disabled 15482 | -7/Garrison | Discovered new exit (range 9) 15485 | -7/Garrison | Identified exit to Factory 15556 | -7/Garrison | Garrison Relay disabled 15603 | -7/Garrison | Discovered exit to Factory (range 5) 15641 | -7/Garrison | Garrison Relay disabled 15713 | -7/Garrison | Garrison Relay disabled 15783 | -7/Garrison | Discovered exit to Factory (range 10) 15804 | -7/Garrison | Found embedded Infiltrators 15851 | -7/Garrison | Build established: Commander-Mutant 15863 | -7/Garrison | Entered Factory 15863 | -7/Factory | Accompanied by 11 allies 15904 | -7/Factory | Identified exit to Garrison 15941 | -7/Factory | Entered Garrison 15941 | -7/Garrison | Accompanied by 11 allies 16036 | -7/Garrison | Triggered checkpoint 16042 | -7/Garrison | Triggered checkpoint 16056 | -7/Garrison | Triggered checkpoint 16080 | -7/Garrison | Triggered checkpoint 16103 | -7/Garrison | Discovered new exit (range 5) 16104 | -7/Garrison | Identified exit to Factory 16155 | -7/Garrison | Discovered exit to Factory (range 14) 16249 | -7/Garrison | Expanded RIF knowledge: Alert ID Control 16295 | -7/Garrison | Discovered exit to Factory (range 8) 16316 | -7/Garrison | Triggered checkpoint 16490 | -7/Garrison | Triggered checkpoint 16515 | -7/Garrison | Garrison Relay disabled 16558 | -7/Garrison | Triggered checkpoint 16608 | -7/Garrison | Discovered exit to Factory (range 10) 16674 | -7/Garrison | Found embedded Infiltrators 16744 | -7/Garrison | Triggered checkpoint 16772 | -7/Garrison | Garrison Relay disabled 16832 | -7/Garrison | Garrison Relay disabled 16968 | -7/Garrison | Entered Factory 16968 | -7/Factory | Accompanied by 6 allies 17194 | -7/Factory | Garrison activated, responded to threat 17249 | -7/Factory | Fabricated S-27 Virus? 17281 | -7/Factory | Identified exit to Garrison 17292 | -7/Factory | Entered Garrison 17292 | -7/Garrison | Accompanied by 3 allies 17310 | -7/Garrison | Triggered checkpoint 17351 | -7/Garrison | Garrison Relay disabled 17458 | -7/Garrison | Core integrity fell below 50% 17590 | -7/Garrison | Build established: Mutant 17596 | -7/Garrison | Expanded RIF knowledge: Coupler Efficiency 17603 | -7/Garrison | Discovered exit to Factory (range 14) 17701 | -7/Garrison | Lost 7 parts (2n2u3w) 17792 | -7/Garrison | Triggered checkpoint 17822 | -7/Garrison | Garrison Relay disabled 17868 | -7/Garrison | Entered Factory 17868 | -6/Factory | Accompanied by 1 ally 17868 | -6/Factory | Evolved 2 slots: Power x1, Propulsion x1 17968 | -6/Factory | Build established: Scavenger-Mutant 17988 | -6/Factory | Discovered new exit (range 8) 17991 | -6/Factory | Identified exit to Lower Caves 18033 | -6/Factory | Entered Lower Caves 18112 | -6/Lower Caves | Attracted the attention of an 0b10 checkpoint 18122 | -6/Lower Caves | Learned Factory emergency access door positions 18325 | -6/Lower Caves | Discovered new exit (range 15) 18332 | -6/Lower Caves | Identified exit to Lower Caves 18334 | -6/Lower Caves | Learned Factory garrison access intel 18336 | -6/Lower Caves | Entered another Lower Caves area 18367 | -6/Lower Caves | Discovered new exit (range 10) 18372 | -6/Lower Caves | Identified exit to Data Miner 18396 | -6/Lower Caves | Entered Data Miner 18396 | -6/Data Miner | Discovered new exit (range 6) 18406 | -6/Data Miner | Met Data Miner 18416 | -6/Data Miner | Learned location of Section 7 (-2) 18416 | -6/Data Miner | Acquired the access code to Warlord's prototype stash 18423 | -6/Data Miner | Received God Mode back door access code from Data Miner 18442 | -6/Data Miner | Identified exit to Proximity Caves 18442 | -6/Data Miner | Entered Proximity Caves 18451 | -5/Proximity Caves | Learned Factory terminal intel 18683 | -5/Proximity Caves | Escorted by Enhanced Grunt 18686 | -5/Proximity Caves | Attracted the attention of an 0b10 checkpoint 18729 | -5/Proximity Caves | Discovered new exit (range 10) 18753 | -5/Proximity Caves | Entered Factory 18753 | -5/Factory | Accompanied by 1 ally 18753 | -5/Factory | Evolved 2 slots: Propulsion x1, Utility x1 18755 | -5/Factory | Loaded intel: 28 terminal locations 18756 | -5/Factory | Loaded intel: 4 garrison access locations 18783 | -5/Factory | Mak. Hacking Suite fried by hacking feedback 18804 | -5/Factory | Incoming investigation squad redirected 18946 | -5/Factory | Incoming investigation squad redirected 18999 | -5/Factory | Discovered new exit (range 15) 19031 | -5/Factory | Entered Extension 19031 | -5/Extension | Accompanied by 1 ally 19483 | -5/Extension | Repaired Broken Hvy. Linear Accelerator 19542 | -5/Extension | Repaired Imp. Weapon Cycler 19607 | -5/Extension | Repaired Aerolev Unit 19691 | -5/Extension | Repaired Gravity Neutralizer 19725 | -5/Extension | Repaired Sml. Storage Unit 20124 | -5/Extension | Spotted B-75 Beast 20147 | -5/Extension | Allies destroyed B-75 Beast 20152 | -5/Extension | Spotted B-75 Beast 20159 | -5/Extension | Destroyed B-75 Beast 20223 | -5/Extension | Rescued a captive Derelict 20300 | -5/Extension | Build established: Scavenger-Gunner 20396 | -5/Extension | Rescued A7 20406 | -5/Extension | Rescued a captive Derelict 20407 | -5/Extension | Rescued a captive Derelict 20425 | -5/Extension | Rescued a captive Derelict 20431 | -5/Extension | Rescued a captive Derelict 20466 | -5/Extension | Discovered new exit (range 10) 20467 | -5/Extension | Discovered new exit (range 6) 20501 | -5/Extension | Entered Cetus 20501 | -5/Cetus | Accompanied by 9 allies (A7) 20506 | -5/Cetus | Acquired a Cetus Manufacturing Module code from A7 20519 | -5/Cetus | Spotted Cetus Guard 20519 | -5/Cetus | Spotted Cetus Guard 20520 | -5/Cetus | Spotted Cetus Guard 20523 | -5/Cetus | Spotted Cetus Guard 20530 | -5/Cetus | Destroyed Cetus Guard 20535 | -5/Cetus | Destroyed Cetus Guard 20539 | -5/Cetus | Allies destroyed Cetus Guard 20543 | -5/Cetus | Destroyed Cetus Guard 20567 | -5/Cetus | Started Cetus Manufacturing Module 20592 | -5/Cetus | Manufactured an Enhanced Grunt 20617 | -5/Cetus | Manufactured an Enhanced Grunt 20642 | -5/Cetus | Manufactured an Enhanced Grunt 20667 | -5/Cetus | Manufactured an Enhanced Grunt 20692 | -5/Cetus | Manufactured an Enhanced Grunt 20763 | -5/Cetus | Destroyed A7 20764 | -5/Cetus | Extracted ID and sensor layout for unrecognized location from A7's data core 20773 | -5/Cetus | Found Prototype Protection 20773 | -5/Cetus | Identified Med. Regenerative Plating 20774 | -5/Cetus | Cetus Manufacturing Module disabled 20799 | -5/Cetus | Discovered new exit (range 15) 20832 | -5/Cetus | Spotted Cetus Guard 20832 | -5/Cetus | Spotted Cetus Guard 20844 | -5/Cetus | Spotted Cetus Guard 20845 | -5/Cetus | Spotted Cetus Guard 20849 | -5/Cetus | Destroyed Cetus Guard 20850 | -5/Cetus | Allies destroyed Cetus Guard 20855 | -5/Cetus | Destroyed Cetus Guard 20859 | -5/Cetus | Allies destroyed Cetus Guard 20873 | -5/Cetus | Discovered new exit (range 15) 20877 | -5/Cetus | Met Revision 17 20920 | -5/Cetus | Entered Archives 20920 | -5/Archives | Accompanied by 7 allies 20967 | -5/Archives | Discovered new exit (range 14) 21014 | -5/Archives | Entered Hub_04(d) 21014 | -5/Hub_04(d) | Accompanied by 6 allies 21082 | -5/Hub_04(d) | Garrison activated, responded to threat 21146 | -5/Hub_04(d) | Build established: Scavenger-Mutant 21149 | -5/Hub_04(d) | Identified exit to Garrison 21151 | -5/Hub_04(d) | Entered Garrison 21151 | -5/Garrison | Accompanied by 2 allies 21176 | -5/Garrison | Expanded RIF knowledge: Watcher Feeds 21192 | -5/Garrison | Triggered checkpoint 21214 | -5/Garrison | Garrison Relay disabled 21230 | -5/Garrison | Triggered checkpoint 21332 | -5/Garrison | Spotted B-75 Beast 21421 | -5/Garrison | Destroyed B-75 Beast 21444 | -5/Garrison | Destroyed 8 combat bots 21506 | -5/Garrison | Triggered checkpoint 21588 | -5/Garrison | Discovered new exit (range 10) 21613 | -5/Garrison | Garrison Relay disabled 21714 | -5/Garrison | Triggered checkpoint 21768 | -5/Garrison | Triggered checkpoint 21834 | -5/Garrison | Triggered checkpoint 21899 | -5/Garrison | Garrison Relay disabled 21990 | -5/Garrison | Triggered checkpoint 22112 | -5/Garrison | Garrison Relay disabled 22122 | -5/Garrison | Triggered checkpoint 22144 | -5/Garrison | Discovered new exit (range 10) 22352 | -5/Garrison | Triggered checkpoint 22393 | -5/Garrison | Garrison Relay disabled 22403 | -5/Garrison | Triggered checkpoint 22522 | -5/Garrison | Discovered new exit (range 11) 22579 | -5/Garrison | Entered Factory 22579 | -4/Factory | Accompanied by 2 allies 22579 | -4/Factory | Evolved 2 slots: Propulsion x1, Utility x1 22667 | -4/Factory | Repaired Antigrav Array 22829 | -4/Factory | First assault squad dispatched 22842 | -4/Factory | Found Powered Armor 22844 | -4/Factory | Found Powered Armor 22849 | -4/Factory | Incoming assault squad redirected 23120 | -4/Factory | Manually triggered Chute Trap 23120 | -4/Factory | Sucked down chute 23120 | -4/Factory | Entered Waste 23127 | -4/Waste | Spotted C-40 Crusher 23135 | -4/Waste | EMP discharged 23154 | -4/Waste | Destroyed C-40 Crusher 23164 | -4/Waste | Spotted C-40 Crusher 23164 | -4/Waste | Spotted C-40 Crusher 23175 | -4/Waste | Destroyed C-40 Crusher 23175 | -4/Waste | Spotted C-40 Crusher 23186 | -4/Waste | Spotted C-40 Crusher 23192 | -4/Waste | Spotted C-40 Crusher 23199 | -4/Waste | Discovered new exit (range 11) 23202 | -4/Waste | Identified exit to Factory 23203 | -4/Waste | Entered Factory 23232 | -4/Factory | System corruption reached 10% 23255 | -4/Factory | Identified exit to Garrison 23267 | -4/Factory | Entered Garrison 23274 | -4/Garrison | Triggered checkpoint 23291 | -4/Garrison | Spotted B-86 Titan 23314 | -4/Garrison | Garrison Relay disabled 23442 | -4/Garrison | Spotted B-86 Titan 23613 | -4/Garrison | Triggered checkpoint 23618 | -4/Garrison | Triggered checkpoint 23645 | -4/Garrison | Discovered new exit (range 10) 23649 | -4/Garrison | Identified exit to Factory 23666 | -4/Garrison | Triggered checkpoint 23678 | -4/Garrison | Self-destructed Last Messages --------------- 23645_ EXIT=FOUND 23649_ EXIT=IDENTIFIED: FACTORY 23651_ System corrupted: Substantial component data lost. 23654_ S-27 Virus destroyed. 23656_ Acquired 15 matter. 23656_ Acquired 8 matter. 23666_ Beams of light sweep through the air. An alarm sounds. 23671_ Penetrated by Slug. 23671_ Slug penetrates Wall. 23672_ Adv. Phase Shifter destroyed. 23674_ System corrupted: Component data lost. 23674_ Imp. Antigrav System destroyed. 23675_ Imp. Remote Datajack destroyed. 23676_ Destroyed Lgt. Antimatter Reactor. 23677_ Slug penetrates H-77 Assassin. 23677_ Slug penetrates Earth. 23677_ Penetrated by Slug. 23677_ Slug penetrates Wall. 23677_ Imp. Antigrav System destroyed. 23678_ Critical hit (Burn: +50). Map ----- +----------------------------------------------------+ | ??????????????????????????????????????????# | | ??????????????????????????????????????????# | | ??????????????????????????????????????????## ## | | ???????????????????????????????????????????# ## | | ???????????????????????????????????????????# ### | | ???????????????????????????????????????????# #?? | | ???????????????????????????????????????????# #?? | | ???????????????????????????????????????????# #?? | | ????????????????????????????????????###????# #?? | | ??????????????????????###############"###### ##? | | ??????????????????????# =* "#? | | ??????????????????????# [%=% #?? | | ??????????????????????# ####+#######=######++#?? | | ??????????????????????# #??????????###?????????? | | ??????????????????????# #??????????????????????? | | ??????????????????????# #??????????????????????? | | ??????????????????????# #??????????????????????? | | ??????????????????????# #??????????????????????? | | ??????????????????????# #??????????????????????? | | ??????????????????????# #??????????????????????? | | ??????????????????????# ###????????????????????? | | ??????????????????????# g #????????????????????? | | ??????????????????????# g /????????????????????? | | ??????????????????????# #????????????????????? | | ????????????????????###gh###????????????????????? | | ????????????????????# ; @#??????????????????????? | | ???????????????????# ## %#??????????????????????? | | ??????????????????????# #??????????????????????? | | ??????????????????????# #??????????????????????? | | ??????????????????????# #??????????????????????? | | ????????????????# ????# #??????????????????????? | | ?????????????#### ### #??????????????????????? | | ??????????# s +??????????????????????? | | ??????????# +??????????????????????? | | ??????????## ###########??????????????????????? | | ????????????????????????????????????????????????? | | ????????????????????????????????????????????????? | | ????????????????????????????????????????????????? | | ????????????????????????????????????????????????? | | ????????????????????????????????????????????????? | | ????????????????????????????????????????????????? | | ????????????????????????????????????????????????? | | ????????????????????????????????????????????????? | | ????????????????????????????????????????????????? | | ????????????????????????????????????????????????? | | | | | | | | | | | +----------------------------------------------------+ Best States ------------- Heat Dissipation 102 Energy Generation 43 Energy Capacity 690 Matter Stores 300 Matter Capacity 300 Sight Range 16 Robot Scan Range 16 Terrain Scan Density 10 Additional Mass Support 16 Armor Coverage 400 Resistance: TH 10 Core Shielding 30 Weapon Cycling 20 Phase Shifting 15 Evasion (%) 81 Targeting Accuracy 8 Core Analysis 9 Recoil Reduction 3 Offensive Hacking 26 Relay Coupler Types 3 Relay Coupler Value 75 Item Schematics ----------------- Combat Drone Bay | -6/Data Miner | Free Lgt. Regenerative Plating | -6/Data Miner | Free Enh. Flexi-carbon Leg | -6/Data Miner | Free Imp. Energy Well | -6/Data Miner | Free Hvy. Proton Missile Launcher | -6/Data Miner | Free Centrium Wheel | -6/Data Miner | Free Lrn. Terrain Scanner | -6/Data Miner | Free Railgun | -6/Data Miner | Free Antigrav System | -6/Data Miner | Free Imp. Fusion Compressor | -6/Data Miner | Free Q-thruster | -6/Data Miner | Free Robot Schematics ------------------ A-15 Conveyor | -6/Data Miner | Free S-27 Virus | -6/Data Miner | Free R-10 Processor | -6/Data Miner | Free M-36 Artificer | -6/Data Miner | Free W-44 Eye | -6/Data Miner | Free Fabricated ------------ S-27 Virus | x4 | -7/Factory | Preloaded Alien Tech Used ----------------- None Achievements -------------- None Challenges ------------ None Game ------ Seed GravmagSigixStorm Manual? 0 Play Time 03:04:08 Cumulative 1531.4 hours Start 2022.07.06 @ 00:00:23 End 2022.07.06 @ 18:33:51 Sessions 1 Manual Loads 0 Difficulty Rogue Special Mode None Game No. 539 Rogue 539 Adventurer 0 Explorer 0 Win Type - Total 108 Types 22/12/45/6/1/2/18/1/1 Lore% 96 Gallery% 96 Achievement% 86 Wizard Run 0 Options --------- ASCII 0 Keyboard 0 Movement Numpad Keybinds 0 Fullscreen 1 Font 18/SmallcapsGlow Map View 76x50 Tactical HUD 1 Map Filters NONE Filters NONE Steam 1 RUN: 92dc2cf7-795e-4737-b30a-d0deaa338431